Department,Expense Area,Date,Supplier,Transaction Number,Amount,Expense Type
Home Office,CE - Corporate Enablers,13/06/2022,CONNEVANS,99-CE - Corporate Enablers-84888,848.88,Workplace Reasonable Adjustment - Audio Equipment And Keyboard
Home Office,COMMS - Communications Directorate,27/06/2022,DRI MAXON COMPUTER,10-COMMS - Communications Directorate-8928,892.8,Login To A Website That The Social Media Team Use For Their Work
Home Office,DDaT - Digital Data & Technology,02/06/2022,BIC EXHIBITIONS,13-DDaT - Digital Data & Technology-700,700,Uk Home Office - 8Th June 2022 - Fairfield Halls. Team Away Day. Due To The Short Notice Urgency Contracted Supplier Unable To Meet Booking Requirements
Home Office,DDaT - Digital Data & Technology,02/06/2022,THE MYERSBRIGGS COMPAN,14-DDaT - Digital Data & Technology-720,720,Mbti- Personal Impact Reports. Personal And Team Development Reports To Be Used For Group Exercise On Team Dynamics.
Home Office,DDaT - Digital Data & Technology,13/06/2022,RipeNCCCom,12-DDaT - Digital Data & Technology-69558,695.58,Purchase Was A One-Off Cost For A Renewal Of A Service Fee For The Departments Public Ip Addresses. Unavailable To Purchase Via Metis.
Home Office,DDaT - Digital Data & Technology,15/06/2022,CITYSPRINT UK LIMITED,11-DDaT - Digital Data & Technology-165366,1653.66,Urgent Payment For Some Outstanding Courier Services Used For Collecting Laptops Over A Period Of A Few Months.
Home Office,DDaT - Digital Data & Technology,27/06/2022,CLEARLEFT LIMITED,0-DDaT - Digital Data & Technology-624,624,"Ux (User Experience) Conference. Portfolio Content Designers Attending Day Two, Creation Day, Of Conference. Not Available To Book Via Basware And Civil Service Learning (Csl)."
Home Office,DDaT - Digital Data & Technology,27/06/2022,CLEARLEFT LIMITED,1-DDaT - Digital Data & Technology-624,624,"Ux (User Experience) Conference. Portfolio Content Designers Attending Day Two, Creation Day, Of Conference. Not Available To Book Via Basware And Civil Service Learning (Csl)."
Home Office,DDaT - Digital Data & Technology,27/06/2022,CLEARLEFT LIMITED,2-DDaT - Digital Data & Technology-624,624,"Ux (User Experience) Conference. Portfolio Content Designers Attending Day Two, Creation Day, Of Conference. Not Available To Book Via Basware And Civil Service Learning (Csl)."
Home Office,DDaT - Digital Data & Technology,27/06/2022,CLEARLEFT LIMITED,3-DDaT - Digital Data & Technology-624,624,"Ux (User Experience) Conference. Portfolio Content Designers Attending Day Two, Creation Day, Of Conference. Not Available To Book Via Basware And Civil Service Learning (Csl)."
Home Office,DDaT - Digital Data & Technology,27/06/2022,CLEARLEFT LIMITED,4-DDaT - Digital Data & Technology-624,624,"Ux (User Experience) Conference. Portfolio Content Designers Attending Day Two, Creation Day, Of Conference. Not Available To Book Via Basware And Civil Service Learning (Csl)."
Home Office,DDaT - Digital Data & Technology,27/06/2022,CLEARLEFT LIMITED,5-DDaT - Digital Data & Technology-624,624,"Ux (User Experience) Conference. Portfolio Content Designers Attending Day Two, Creation Day, Of Conference. Not Available To Book Via Basware And Civil Service Learning (Csl)."
Home Office,DDaT - Digital Data & Technology,27/06/2022,CLEARLEFT LIMITED,6-DDaT - Digital Data & Technology-624,624,"Ux (User Experience) Conference. Portfolio Content Designers Attending Day Two, Creation Day, Of Conference. Not Available To Book Via Basware And Civil Service Learning (Csl)."
Home Office,DDaT - Digital Data & Technology,27/06/2022,CLEARLEFT LIMITED,7-DDaT - Digital Data & Technology-624,624,"Ux (User Experience) Conference. Portfolio Content Designers Attending Day Two, Creation Day, Of Conference. Not Available To Book Via Basware And Civil Service Learning (Csl)."
Home Office,DDaT - Digital Data & Technology,27/06/2022,CLEARLEFT LIMITED,8-DDaT - Digital Data & Technology-624,624,"Ux (User Experience) Conference. Portfolio Content Designers Attending Day Two, Creation Day, Of Conference. Not Available To Book Via Basware And Civil Service Learning (Csl)."
Home Office,DDaT - Digital Data & Technology,27/06/2022,CLEARLEFT LIMITED,9-DDaT - Digital Data & Technology-624,624,"Ux (User Experience) Conference. Portfolio Content Designers Attending Day Two, Creation Day, Of Conference. Not Available To Book Via Basware And Civil Service Learning (Csl)."
Home Office,DG - Delivery,02/06/2022,THEHUBEVENTS,21-DG - Delivery-696,696,Training Course For Sw
Home Office,DG - Delivery,09/06/2022,KPMGK,20-DG - Delivery-11664000000000001,1166.4,Certified Scrum Product Owner� (Cspo) Training
Home Office,HMPO - Her Majesty's Passport Office,09/06/2022,ADOBE CREATIVE CLOUD,19-HMPO - Her Majesty's Passport Office-59633000000000004,596.33,Adobe A/C Renewal. . Adobe Is Not A Supplier On Metis And Do Not Accept Pos. Approved.
Home Office,HMPO - Her Majesty's Passport Office,10/06/2022,BUYITDIRECT,17-HMPO - Her Majesty's Passport Office-53559,535.59,To Purchase Laptop Sleeves For New Examiners - Aom
Home Office,HMPO - Her Majesty's Passport Office,21/06/2022,AMAZON,18-HMPO - Her Majesty's Passport Office-50449,504.49,To Purchase Usb - C To HDMI Cable To Support The Operational Team For The New Staff
Home Office,HMPO - Her Majesty's Passport Office,22/06/2022,BUYITDIRECT,15-HMPO - Her Majesty's Passport Office-70998,709.98,To Purchase Headsets For The New Staff In The Operational Team.
Home Office,HMPO - Her Majesty's Passport Office,22/06/2022,BUYITDIRECT,16-HMPO - Her Majesty's Passport Office-70998,709.98,To Purchase Headsets For The New Staff In The Operational Team.
Home Office,"STARS - Science, Technology, Analysis, Research and Strategy",01/06/2022,NUFFIELD COLLEGE,"96-STARS - Science, Technology, Analysis, Research and Strategy -1000",1000,"This is training course for ""Hard-to-Reach Applied Research Methods with Hidden, Marginal and Excluded Populations "
Home Office,"STARS - Science, Technology, Analysis, Research and Strategy",01/06/2022,NUFFIELD COLLEGE,"97-STARS - Science, Technology, Analysis, Research and Strategy -1000",1000,"This is training course for ""Hard-to-Reach Applied Research Methods with Hidden, Marginal and Excluded Populations "
Home Office,"STARS - Science, Technology, Analysis, Research and Strategy",01/06/2022,NUFFIELD COLLEGE,"98-STARS - Science, Technology, Analysis, Research and Strategy -1000",1000,"This is training course for ""Hard-to-Reach Applied Research Methods with Hidden, Marginal and Excluded Populations "
Home Office,"STARS - Science, Technology, Analysis, Research and Strategy",08/06/2022,PEERSPACE UK LIMITED,"94-STARS - Science, Technology, Analysis, Research and Strategy -66248",662.48,Facilities For Unit Away Day To Enable Offsite Collaboration
Home Office,"STARS - Science, Technology, Analysis, Research and Strategy",24/06/2022,ISFG2021 LLC,"95-STARS - Science, Technology, Analysis, Research and Strategy -59259",592.59,Conference For Staff
Home Office,UKBE - UK Borders & Enforcement,01/06/2022,SCREWFIX,90-UKBE - UK Borders & Enforcement-72873,728.73,Tools For Each Operational Team
Home Office,UKBE - UK Borders & Enforcement,01/06/2022,SCREWFIX,89-UKBE - UK Borders & Enforcement-76491,764.91,Inspection Cameras For Each Operational Team
Home Office,UKBE - UK Borders & Enforcement,01/06/2022,WASP BARCODE UK,93-UKBE - UK Borders & Enforcement-102167,1021.67,Urgent Requirement.  Not Available On Basware. It Was Used For Small Boats. 
Home Office,UKBE - UK Borders & Enforcement,02/06/2022,HARBOURSIDE MARINA LIM,92-UKBE - UK Borders & Enforcement-293304,2933.04,Fuel Purchased In Liverpool Marina For Coastal Patrol Vessel Active. Authorisation rvd.
Home Office,UKBE - UK Borders & Enforcement,02/06/2022,ZTL ROBERTSONS DELI LI,91-UKBE - UK Borders & Enforcement-6888,688.8,Catering At The I.e. & Police Lorry Drop Workshop In Bridgend
Home Office,UKBE - UK Borders & Enforcement,06/06/2022,AMAZON,54-UKBE - UK Borders & Enforcement-5038,503.8,Wheelchairs For Manston And Wjf. Stock Used For Transporting Those In Need On Their Onward Journey Not Returned.
Home Office,UKBE - UK Borders & Enforcement,06/06/2022,AMAZON,58-UKBE - UK Borders & Enforcement-999,999,Camera Film Purchased For Wjf
Home Office,UKBE - UK Borders & Enforcement,07/06/2022,POLYBAGS LIMITED,36-UKBE - UK Borders & Enforcement-243066,2430.66,Order For Non Opaque Plastic Bags For Migrant Property And Mobile Phones At The Instruction Of Hola For Use At Wjf. Non Opaque Bags Are Not Available To Purchase Via Metis. Authorised By Ad Thompson
Home Office,UKBE - UK Borders & Enforcement,08/06/2022,AMAZON,59-UKBE - UK Borders & Enforcement-91176,911.76,"4 X Dell D6000 With Usb 3.0 (3.1 Gen 1) Type-C Black - Docking (Wired, Usb) Purchased To Enable Bf To Make Full Use Of The Spare Desks In The Main Office For Officer's to Dock Laptops to a Monitor, Keyboard & Mouse In Line With Home Office Policy."
Home Office,UKBE - UK Borders & Enforcement,08/06/2022,INDUSTRIAL POW UNIT LT,78-UKBE - UK Borders & Enforcement-5141,514.1,0781 22 Protector Md Danfoss Test Beds X 2 For Pressure Sensors . Pressure Switch Seals
Home Office,UKBE - UK Borders & Enforcement,08/06/2022,SCREWFIX,38-UKBE - UK Borders & Enforcement-70392,703.92,Tools For Intervention Teams
Home Office,UKBE - UK Borders & Enforcement,08/06/2022,TOOLDEN LIMITED,40-UKBE - UK Borders & Enforcement-855,855,Screwdrivers
Home Office,UKBE - UK Borders & Enforcement,08/06/2022,TOOLDEN LIMITED,39-UKBE - UK Borders & Enforcement-930,930,Flexi Lights For Flex Teams
Home Office,UKBE - UK Borders & Enforcement,08/06/2022,WILLETT HOUSE VETS LIMITED,77-UKBE - UK Borders & Enforcement-161456,1614.56,Heathrow Dog Unit Vet Bill 
Home Office,UKBE - UK Borders & Enforcement,09/06/2022,CSG Ltd Waste Serv,61-UKBE - UK Borders & Enforcement-800,800,0905\22\See\Pi - The Removal Of Grey & Black Water From Hmc Seeker In Fowey Harbour By Road Tanker Due To Her Overboard Discharge Pump Being Defective. 
Home Office,UKBE - UK Borders & Enforcement,09/06/2022,SCREWFIX,37-UKBE - UK Borders & Enforcement-52794000000000005,527.94,Tools For Intervention Teams
Home Office,UKBE - UK Borders & Enforcement,13/06/2022,AQUAFAX P,26-UKBE - UK Borders & Enforcement-64078,640.78,2 Chargemasters Battery Chargers For Rhibs On Cutters Lrn 0908 22 10/06/2022
Home Office,UKBE - UK Borders & Enforcement,13/06/2022,DFS Trading Limited,43-UKBE - UK Borders & Enforcement-578,578,"Seating For Dedicated Meeting Space. Nothing Suitable Available In Stores, A Similar Item On Basware Cost 1090 Exc Vat"
Home Office,UKBE - UK Borders & Enforcement,13/06/2022,Sharp & Enright,85-UKBE - UK Borders & Enforcement-543,543,New Issue Outdoor Trousers For Seict Command
Home Office,UKBE - UK Borders & Enforcement,13/06/2022,Sharp & Enright,86-UKBE - UK Borders & Enforcement-900,900,New Issue Outdoor Trousers For Seict Command
Home Office,UKBE - UK Borders & Enforcement,14/06/2022,MARINESUPERSTORE.C,25-UKBE - UK Borders & Enforcement-8397,839.7,Gill Rolling Jumbo Bag X6 -Ordered For Gm Digital Team 
Home Office,UKBE - UK Borders & Enforcement,15/06/2022,AMAZON,55-UKBE - UK Borders & Enforcement-50996,509.96,Noco25 Smart Charger (Trickle Charger For Training Coach) - Authorised 
Home Office,UKBE - UK Borders & Enforcement,15/06/2022,AMAZON,53-UKBE - UK Borders & Enforcement-8941,894.1,Gopro Hero 9 Black - Waterproof Action Camera (X3) - Ordered For Gm Team -Approved
Home Office,UKBE - UK Borders & Enforcement,15/06/2022,Barriers Direct,42-UKBE - UK Borders & Enforcement-6601,660.1,Safety Barriers
Home Office,UKBE - UK Borders & Enforcement,15/06/2022,DELTA COMERCIAL CXA,82-UKBE - UK Borders & Enforcement-54844000000000005,548.44,Annual Service Of Ov
Home Office,UKBE - UK Borders & Enforcement,15/06/2022,MIDDLETONHILL,52-UKBE - UK Borders & Enforcement-2564,2564,Canon Rf 100-400Mm F5.6-8 Is Usm (X4) -Ordered For Gm Team - Approved
Home Office,UKBE - UK Borders & Enforcement,15/06/2022,PAYPAL PP,45-UKBE - UK Borders & Enforcement-103999,1039.99,Nikon Coolpix P1000 Digital Camera  1 - Ordered For Gm Team - Approved 
Home Office,UKBE - UK Borders & Enforcement,15/06/2022,PAYPAL PP,46-UKBE - UK Borders & Enforcement-103999,1039.99,Nikon Coolpix P1000 Digital Camera  1 - Ordered For Gm Team - Approved 
Home Office,UKBE - UK Borders & Enforcement,15/06/2022,PAYPAL PP,44-UKBE - UK Borders & Enforcement-207998,2079.98,Nikon Coolpix P1000 Digital Camera  2 - Ordered For Gm Team - Approved 
Home Office,UKBE - UK Borders & Enforcement,15/06/2022,Sharp & Enright,84-UKBE - UK Borders & Enforcement-666,666,Wet Weather Trousers For Use At Marinas And Western Jet Foil Terminal
Home Office,UKBE - UK Borders & Enforcement,16/06/2022,BLACK ROOSTER LIMITED,41-UKBE - UK Borders & Enforcement-990,990,Office Supplies
Home Office,UKBE - UK Borders & Enforcement,16/06/2022,Sharp & Enright,51-UKBE - UK Borders & Enforcement-666,666,Approved Personal Issue Water-Proof Trousers To Use In Extremely Foul Weather Around Marinas/Dockside.
Home Office,UKBE - UK Borders & Enforcement,16/06/2022,THORWORLD INDUSTRIES L,87-UKBE - UK Borders & Enforcement-60917999999999995,609.18,Part/Full Payment For Purchase Of Trailer Support For Utp Sheerness
Home Office,UKBE - UK Borders & Enforcement,16/06/2022,THORWORLD INDUSTRIES L,88-UKBE - UK Borders & Enforcement-60917999999999995,609.18,Part Payment For The Purchase Of Trailer Support For Utp Sheerness
Home Office,UKBE - UK Borders & Enforcement,17/06/2022,AMAZON,57-UKBE - UK Borders & Enforcement-50997,509.97,Bulk Purchase Of Heavy Duty Bin Liners 
Home Office,UKBE - UK Borders & Enforcement,17/06/2022,CRITICAL HEALTHCARE,30-UKBE - UK Borders & Enforcement-89789,897.89,Reconciling Large Blanket Order For Migrants
Home Office,UKBE - UK Borders & Enforcement,17/06/2022,CRITICAL HEALTHCARE,31-UKBE - UK Borders & Enforcement-89789,897.89,Reconciling Large Blanket Order For Migrants
Home Office,UKBE - UK Borders & Enforcement,17/06/2022,CRITICAL HEALTHCARE,32-UKBE - UK Borders & Enforcement-89789,897.89,Reconciling Large Blanket Order For Migrants
Home Office,UKBE - UK Borders & Enforcement,17/06/2022,CRITICAL HEALTHCARE,33-UKBE - UK Borders & Enforcement-89789,897.89,Reconciling Large Blanket Order For Migrants
Home Office,UKBE - UK Borders & Enforcement,17/06/2022,CRITICAL HEALTHCARE,34-UKBE - UK Borders & Enforcement-89789,897.89,Reconciling Large Blanket Order For Migrants
Home Office,UKBE - UK Borders & Enforcement,17/06/2022,CRITICAL HEALTHCARE,35-UKBE - UK Borders & Enforcement-89789,897.89,Reconciling Large Blanket Order For Migrants
Home Office,UKBE - UK Borders & Enforcement,17/06/2022,MEDIVET-DOVER,24-UKBE - UK Borders & Enforcement-90484,904.84,Veterinary Treatment For Dogs In Training
Home Office,UKBE - UK Borders & Enforcement,20/06/2022,NATIONALOFFICEFURNITUR,28-UKBE - UK Borders & Enforcement-89726,897.26,Desks Required For Freight Office Refit Authorised
Home Office,UKBE - UK Borders & Enforcement,20/06/2022,NATIONALOFFICEFURNITUR,29-UKBE - UK Borders & Enforcement-89726,897.26,6 X Office Desks 1200X800 For New Accommodation At Coquelles Freight
Home Office,UKBE - UK Borders & Enforcement,20/06/2022,TECNOSMART,48-UKBE - UK Borders & Enforcement-86263,862.63,Laptop Purchase For Training Provided For Home Office International Operations � Approved Project Funding Stream
Home Office,UKBE - UK Borders & Enforcement,20/06/2022,TECNOSMART,49-UKBE - UK Borders & Enforcement-86263,862.63,Laptop Purchase For Training Provided For Home Office International Operations � Approved Project Funding Stream
Home Office,UKBE - UK Borders & Enforcement,20/06/2022,XEROX DOMINICANA,80-UKBE - UK Borders & Enforcement-87312,873.12,Fy22-23_Hocssf_Do_Vetted_Team_Kit_&_Vehicles Purchase Of Xerox Printer Cartridges
Home Office,UKBE - UK Borders & Enforcement,20/06/2022,XEROX DOMINICANA,81-UKBE - UK Borders & Enforcement-88871,888.71,Fy22-23_Hocssf_Do_Vetted_Team_Kit_&_Vehicles Purchase Of Xerox Printer Cartridges
Home Office,UKBE - UK Borders & Enforcement,23/06/2022,CURRYS ONLINE,47-UKBE - UK Borders & Enforcement-936,936,New Replacement Shredder.
Home Office,UKBE - UK Borders & Enforcement,23/06/2022,PC-PLANET,79-UKBE - UK Borders & Enforcement-577361,5773.61,Procurement Of It For Mne Border Police As Part Of Cssf Project Delivery Of Herceg Novi Maritime Sub-Hq Renovations. 
Home Office,UKBE - UK Borders & Enforcement,23/06/2022,WOODCROFT VET GROUP WD,23-UKBE - UK Borders & Enforcement-72008,720.08,Veterinary Treatment  for Dog in Training
Home Office,UKBE - UK Borders & Enforcement,27/06/2022,IWM,75-UKBE - UK Borders & Enforcement-500,500,Tour Of War Rooms For French Delegates
Home Office,UKBE - UK Borders & Enforcement,27/06/2022,Tamar Towing and Carav,27-UKBE - UK Borders & Enforcement-530,530,Service And�Repair To Safeguards Rhib Trailer
Home Office,UKBE - UK Borders & Enforcement,28/06/2022,AMAZON,56-UKBE - UK Borders & Enforcement-87186,871.86,"It Equipment For Cfi Belfast Office Due To Required Equipment Being Unavailable . Items Are An Operational Necessity For Our Office - Microsoft Surface Dock 2 (2), Usb C To HDMI Cable (7),Usb C Hub 6 In 1 (4)."
Home Office,UKBE - UK Borders & Enforcement,28/06/2022,GD ENVIRONMENTAL SERVI,74-UKBE - UK Borders & Enforcement-500,500,"1005\22\See\Pi � Removal Of 6,000 Litres Of Grey And Black Water From Hmc Seeker. "
Home Office,UKBE - UK Borders & Enforcement,29/06/2022,ADOBE CREATIVE CLOUD,83-UKBE - UK Borders & Enforcement-89266,892.66,Used For Design Of Training Materials On Stand Alone Mac Book By Tasu Trainers
Home Office,UKBE - UK Borders & Enforcement,29/06/2022,AMAZON,60-UKBE - UK Borders & Enforcement-53449,534.49,Dog Equipment -  Initial Training Course
Home Office,UKBE - UK Borders & Enforcement,29/06/2022,MIRAFIT,50-UKBE - UK Borders & Enforcement-70395,703.95,"Short Term Laying Mats For Short Term Holding Facility . The Laying Mats Are For Their Comfort, They Need To Be Replace From Time To Time As They Do Get Worn Out. "
Home Office,UKBE - UK Borders & Enforcement,30/06/2022,GERMAN HOSPITAL INTERN,76-UKBE - UK Borders & Enforcement-860,860,Medical Care 
Home Office,UKBE - UK Borders & Enforcement,30/06/2022,N/A,68-UKBE - UK Borders & Enforcement-549,549,Emergency water for small boat arrivals
Home Office,UKBE - UK Borders & Enforcement,30/06/2022,N/A,62-UKBE - UK Borders & Enforcement-999,999,Water Delivery For Manston
Home Office,UKBE - UK Borders & Enforcement,30/06/2022,N/A,63-UKBE - UK Borders & Enforcement-999,999,Water Delivery For Manston
Home Office,UKBE - UK Borders & Enforcement,30/06/2022,N/A,64-UKBE - UK Borders & Enforcement-999,999,Water Delivery For Wjf
Home Office,UKBE - UK Borders & Enforcement,30/06/2022,N/A,65-UKBE - UK Borders & Enforcement-999,999,Emergency water for small boat arrivals
Home Office,UKBE - UK Borders & Enforcement,30/06/2022,N/A,66-UKBE - UK Borders & Enforcement-999,999,Emergency water for small boat arrivals
Home Office,UKBE - UK Borders & Enforcement,30/06/2022,N/A,67-UKBE - UK Borders & Enforcement-999,999,Emergency water for small boat arrivals
Home Office,UKBE - UK Borders & Enforcement,30/06/2022,N/A,69-UKBE - UK Borders & Enforcement-999,999,Emergency water for small boat arrivals
Home Office,UKBE - UK Borders & Enforcement,30/06/2022,N/A,70-UKBE - UK Borders & Enforcement-999,999,Emergency water for small boat arrivals
Home Office,UKBE - UK Borders & Enforcement,30/06/2022,N/A,71-UKBE - UK Borders & Enforcement-999,999,Emergency water for small boat arrivals
Home Office,UKBE - UK Borders & Enforcement,30/06/2022,N/A,72-UKBE - UK Borders & Enforcement-999,999,Emergency water for small boat arrivals
Home Office,UKBE - UK Borders & Enforcement,30/06/2022,N/A,73-UKBE - UK Borders & Enforcement-999,999,Emergency water for small boat arrivals
